Cogmind - Beta 13 @@@ ROGUE MODE // 2024.04.09 @ 18:12:26 Player: HoneyComb Result: Destroyed by G-47 Trooper with Particle Gun Performance ------------- Evolutions (2) 1000 Regions Visited (4) 800 Robots Destroyed (4) 20 Value Destroyed (117) 117 Prototype IDs (0) 0 Alien Tech Used (0) 0 Bonus (200) 200 TOTAL SCORE: 2137 Bonus ------- Pacifist 200 Cogmind --------- Core Integrity 0/550 Matter 300/300 Energy 100/100 System Corruption 0% Temperature Cool (9) Movement Core (50) Location -8/Materials Parts ------- > --- POWER (2) -------- (None) > --- PROPULSION (3) --- (None) > --- UTILITY (4) ------ (None) > --- WEAPON (2) ------- (None) > --- INVENTORY (5) ---- Carbon-fiber Leg EMP Trap EMP Trap Peak State ------------ > --- POWER ------------ (None) > --- PROPULSION ------- Carbon-fiber Leg Carbon-fiber Leg Carbon-fiber Leg > --- UTILITY ---------- (None) > --- WEAPON ----------- (None) > --- INVENTORY -------- Carbon-fiber Leg EMP Trap EMP Trap [Rating: 9] Favorites ----------- Power Ion Engine Engine Ion Engine Propulsion Hover Unit Leg Carbon-fiber Leg Wheel Compact Wheel Hover Unit Hover Unit Flight Unit VTOL Module Utility Propulsion Shielding Protection Propulsion Shielding Weapon Assault Rifle Ballistic Gun Assault Rifle Build | -11 -10 -9 -9 -8 ------- Run | Yrd Mat Mat Min Mat Slots Evolved 4 | . . 2 . 2 Power 1 | . . . . 1 Propulsion 1 | . . 1 . . Utility 2 | . . 1 . 1 Weapon . | . . . . . Parts Attached 14 | 4 1 4 2 3 Power 2 | 1 . . 1 . Engine 2 | 1 . . 1 . Core . | . . . . . Reactor . | . . . . . Propulsion 10 | 2 . 4 1 3 Treads . | . . . . . Leg 3 | . . . . 3 Wheel 2 | 2 . . . . Hover 4 | . . 4 . . Flight 1 | . . . 1 . Utility 1 | . 1 . . . Device . | . . . . . Storage . | . . . . . Processor . | . . . . . Hackware . | . . . . . Protection 1 | . 1 . . . Artifact . | . . . . . Weapon 1 | 1 . . . . Energy Gun . | . . . . . Energy Cannon . | . . . . . Ballistic Gun 1 | 1 . . . . Ballistic Cannon . | . . . . . Launcher . | . . . . . Special Weapon . | . . . . . Impact Weapon . | . . . . . Slashing Weapon . | . . . . . Piercing Weapon . | . . . . . Special Melee Weapon . | . . . . . Unidentified Prototypes . | . . . . . Parts Lost 9 | . . 4 4 1 Power 2 | . . 1 1 . Propulsion 5 | . . 2 2 1 Utility 1 | . . . 1 . Weapon 1 | . . 1 . . Highest Loss Streak 4 | . . 3 4 1 To Critical Strikes . | . . . . . Average Slot Usage (%) 43 | . 65 57 39 18 Engine 7 | . 14 9 8 . Leg 3 | . . . . 18 Wheel 6 | . 28 6 . . Hover 12 | . . 21 21 . Protection 8 | . 8 11 10 . Ballistic Gun 4 | . 14 9 . . Naked Turns 64 | . . . 2 62 Heaviest Build 8 | 7 8 8 6 . Greatest Support 45 | 26 26 26 12 45 Greatest Overweight (x) 1 | . . . 1 . Average Overweight (x) . | . . . . . Largest Inventory Capacity 5 | 5 5 5 5 5 Average Capacity 5 | 5 5 5 5 5 Most Carried 5 | 2 1 5 2 4 Average Carried . | . . . . 2 Final Capacity 5 | 5 5 5 5 5 Final Carried 3 | . . . 2 3 Class Distribution -------------------- 100% | Mutant Dominant Class ---------------- Mutant | -10/Materials Mutant | -9/Materials Mutant | -9/Mines Mutant | -8/Materials Resources | -11 -10 -9 -9 -8 ----------- Run | Yrd Mat Mat Min Mat Matter Collected 332 | 193 . 44 40 55 Remotely . | . . . . . Salvage Created 159 | . . 79 20 60 Parts 8 | . . . 3 5 Haulers Intercepted . | . . . . . Recyclers Shooed . | . . . . . Parts Field Recycled . | . . . . . Retrieved Matter . | . . . . . Parts Self-Destructed . | . . . . . Prevented . | . . . . . Kills | -11 -10 -9 -9 -8 ------- Run | Yrd Mat Mat Min Mat Combat Hostiles Destroyed 3 | . . 1 1 1 Melee 2 | . . . 1 1 Guns 1 | . . 1 . . Classes Destroyed 3 | . . 2 1 . Recycler 1 | . . 1 . . Swarmer 1 | . . . 1 . Grunt 2 | . . 1 . 1 Best Kill Streak 2 | . . 2 1 1 Combat Bots Only 1 | . . 1 1 1 Max Kills in Single Turn 1 | . . 1 1 1 Gunslinging . | . . . . . Exploded . | . . . . . Melee 1 | . . . 1 1 Uniques/NPCs Destroyed . | . . . . . Combat | -11 -10 -9 -9 -8 -------- Run | Yrd Mat Mat Min Mat Hostile Shots Fired 108 | . . 48 18 42 Missed 34 | . . 21 5 8 Damage Taken 1306 | . . 444 114 748 Core 750 | . . 154 43 553 Absorbed by Shields . | . . . . . Redirected to Shielding 46 | . . 40 6 . Core Remaining (%) 83 | 100 100 . 50 . Volleys Fired 18 | . 2 16 . . Largest 1 | . 1 1 . . Hottest 20 | . 20 20 . . Shots Fired 18 | . 2 16 . . Gun 18 | . 2 16 . . Cannon . | . . . . . Launcher . | . . . . . Special . | . . . . . Kinetic 18 | . 2 16 . . Thermal . | . . . . . Explosive . | . . . . . Electromagnetic . | . . . . . Robot Hit Streak 4 | . 1 4 . . Robot Miss Streak 2 | . 1 2 . . Penetration Max . | . . . . . Secondary Targets . | . . . . . Shots Hit Robots 10 | . 1 9 . . Core Hits 30 | . . 4 3 23 Critical Kills . | . . . . . Critical Parts Destroyed . | . . . . . Critical Strikes . | . . . . . Melee Attacks . | . . . . . Impact . | . . . . . Slashing . | . . . . . Piercing . | . . . . . Sneak Attacks . | . . . . . Combat Hostiles . | . . . . . Follow-up Attacks . | . . . . . Damage Inflicted 326 | . . 199 30 97 Guns 113 | . . 113 . . Cannons . | . . . . . Explosions 81 | . . 81 . . Melee . | . . . . . Ramming 132 | . . 5 30 97 Kinetic 113 | . . 113 . . Thermal . | . . . . . Explosive 81 | . . 81 . . Electromagnetic . | . . . . . Impact . | . . . . . Slashing . | . . . . . Piercing . | . . . . . Highest Corruption 3 | . . . 3 . Average Corruption 3 | . . . 3 . Corruption Purged . | . . . . . Corruption Blocked . | . . . . . Overload Shots . | . . . . . Overflow Damage 51 | . . 51 . . Projectiles . | . . . . . Explosions 51 | . . 51 . . Melee . | . . . . . Knockbacks 1 | . . . . 1 Impact 1 | . . . . 1 Kinetic . | . . . . . Secondary . | . . . . . Self-Inflicted Damage 227 | . . 177 13 37 Shots 2 | . . 2 . . Rammed 29 | . . 2 5 22 Targets Rammed 45 | . . 2 5 38 Kicked 16 | . . . . 16 Crushed . | . . . . . Highest Temperature 5 | . . . . 5 Average Temperature 5 | . . . . 5 Received Heat Transfer 267 | . . 51 . 216 Siege Activations . | . . . . . Robots Corrupted . | . . . . . Combat Hostiles . | . . . . . Parts Fried . | . . . . . Impact Corruptions . | . . . . . Robots Melted . | . . . . . Combat Hostiles . | . . . . . Parts Melted . | . . . . . Heat Transferred . | . . . . . Parts Sabotaged . | . . . . . Parts Stolen . | . . . . . Parts Stripped . | . . . . . Power Chain Reactions . | . . . . . Alert | -11 -10 -9 -9 -8 ------- Run | Yrd Mat Mat Min Mat Peak Influence 87 | . . 87 20 25 Initial 5 | . . . 5 . Average 5 | . . 13 5 2 Maximum Alert Level . | . . . . . Low Security (%) 100 | 100 100 100 100 100 Level 1 . | . . . . . Level 2 . | . . . . . Level 3 . | . . . . . Level 4 . | . . . . . Level 5 . | . . . . . High Security . | . . . . . Max Security . | . . . . . Squads Dispatched . | . . . . . Investigation . | . . . . . Extermination . | . . . . . Reinforcement . | . . . . . Assault . | . . . . . Garrison . | . . . . . Intercept . | . . . . . Searches Triggered . | . . . . . Construction Impeded . | . . . . . Haulers Reinforced . | . . . . . Active Scanning Responses . | . . . . . Cargo Convoy Interrupts . | . . . . . Stealth | -11 -10 -9 -9 -8 --------- Run | Yrd Mat Mat Min Mat Distress Signals 1 | . . . . 1 Communications Jammed . | . . . . . Distress Signals . | . . . . . Times Spotted 16 | . 1 6 3 6 Peak Tracking Total 6 | . 1 5 3 6 Tactical Retreats 2 | . . 1 . 1 Traps | -11 -10 -9 -9 -8 ------- Run | Yrd Mat Mat Min Mat Traps Triggered . | . . . . . Indirectly . | . . . . . Trap Hack Attempts . | . . . . . Triggered . | . . . . . Disarmed . | . . . . . Reprogrammed . | . . . . . Reused . | . . . . . Traps Extracted . | . . . . . Installed . | . . . . . Triggered . | . . . . . Most Traps Carried 2 | . . . 2 2 Machines | -11 -10 -9 -9 -8 ---------- Run | Yrd Mat Mat Min Mat Machines Disabled 2 | . . 2 . . Max in Single Turn 2 | . . 2 . . Machines Repaired . | . . . . . Machines Dismantled . | . . . . . Machines Sabotaged . | . . . . . Overloaded Fab Kills . | . . . . . Hacking | -11 -10 -9 -9 -8 --------- Run | Yrd Mat Mat Min Mat Machines Accessed 4 | . 2 1 . 1 Terminals 4 | . 2 1 . 1 Fabricators . | . . . . . Repair Stations . | . . . . . Recycling Units . | . . . . . Scanalyzers . | . . . . . Garrison Access . | . . . . . Total Hacks 5 | . 3 1 . 1 Successful 2 | . 1 1 . . Failed 3 | . 2 . . 1 Catastrophic . | . . . . . Database Lockouts . | . . . . . Manual 2 | . 1 . . 1 Terminals 5 | . 3 1 . 1 Fabricators . | . . . . . Repair Stations . | . . . . . Recycling Units . | . . . . . Scanalyzers . | . . . . . Garrison Access . | . . . . . Terminal Hacks 2 | . 1 1 . . Unreport Threat 1 | . . 1 . . Locate Traps 1 | . 1 . . . Fabricator Hacks . | . . . . . Repair Station Hacks . | . . . . . Recycling Unit Hacks . | . . . . . Scanalyzer . | . . . . . Garrison Access Hacks . | . . . . . Unauthorized Hacks . | . . . . . Terminals . | . . . . . Fabricators . | . . . . . Repair Stations . | . . . . . Recycling Units . | . . . . . Scanalyzers . | . . . . . Garrison Access . | . . . . . Data Cores Recovered . | . . . . . Used . | . . . . . Hacking Detections 2 | . 1 1 . . Full Trace Events . | . . . . . Feedback Events . | . . . . . Feedback Blocked . | . . . . . Robot Schematics Acquired . | . . . . . Robots Built . | . . . . . Authchips . | . . . . . Time . | . . . . . Total Robot Build Rating . | . . . . . Part Schematics Acquired . | . . . . . Parts Built . | . . . . . Authchips . | . . . . . Time . | . . . . . Total Part Build Rating . | . . . . . Parts Repaired . | . . . . . Time . | . . . . . Parts Recycled . | . . . . . Recycled Matter . | . . . . . Retrieved Matter . | . . . . . Retrieved Components . | . . . . . Parts Scanalyzed . | . . . . . Part Schematics Acquired . | . . . . . Parts Damaged . | . . . . . Bothacking | -11 -10 -9 -9 -8 ------------ Run | Yrd Mat Mat Min Mat Used RIF Installer . | . . . . . Robots Hacked . | . . . . . Non-combat . | . . . . . Combat . | . . . . . Robot Hacks Applied . | . . . . . Relay Couplers Released . | . . . . . Fabnet Peak Effective % . | . . . . . Robots Rewired . | . . . . . Allies Hacked . | . . . . . Hacks Repelled . | . . . . . Allies | -11 -10 -9 -9 -8 -------- Run | Yrd Mat Mat Min Mat Total Allies . | . . . . . Largest Group . | . . . . . Highest-Rated Group . | . . . . . Highest-Rated Ally . | . . . . . Total Orders . | . . . . . Ally Attacks . | . . . . . Total Damage . | . . . . . Kills . | . . . . . Allies Corrupted . | . . . . . Allies Melted . | . . . . . Intel | -11 -10 -9 -9 -8 ------- Run | Yrd Mat Mat Min Mat Robot Analysis Total . | . . . . . Derelict Logs Recovered 1 | . . . 1 . Drone Launches . | . . . . . Drone Recoveries . | . . . . . Exploration | -11 -10 -9 -9 -8 ------------- Run | Yrd Mat Mat Min Mat Turns Passed 896 | 37 153 173 346 187 Spaces Moved 966 | 34 164 193 425 150 Core 281 | 3 . . 208 70 Treads . | . . . . . Legs 80 | . . . . 80 Wheels 245 | 31 164 50 . . Hover 360 | . . 143 217 . Flight . | . . . . . Fastest Speed 50 | 50 90 52 50 50 Average Speed 78 | 86 90 62 77 87 Slowest Speed 120 | 90 90 90 100 120 Overloaded Moves . | . . . . . Propulsion Burnouts . | . . . . . Robots Hopped . | . . . . . Cave-ins Triggered . | . . . . . Exploration Rate (%) 27 | 4 26 17 75 13 Regions Visited 4 Branch Regions 1 Pre-discovered Areas . | . . . . . Known Exits Taken 1 | . . . 1 . Unknown Exits Taken 3 | 1 1 1 . . Scrap Searched 1 | . . . 1 . Spaces Dug . | . . . . . Terrain Destroyed 28 | . . 28 . . Melee . | . . . . . Projectile . | . . . . . AOE 28 | . . 28 . . Terrain Rammed . | . . . . . Walls Destroyed . | . . . . . Machines Disabled . | . . . . . Actions | -11 -10 -9 -9 -8 --------- Run | Yrd Mat Mat Min Mat Total 1082 | 41 167 230 442 202 Wait 19 | . . 8 4 7 Move 962 | 33 163 192 424 150 Hop . | . . . . . Pick Up 18 | 4 1 4 5 4 Fast Attach . | . . . . . Attach 14 | 4 1 4 2 3 Detach 2 | . . 2 . . Swap . | . . . . . Drop 4 | . . 2 2 . Fire 18 | . 2 16 . . Melee . | . . . . . Ram 29 | . . 2 5 22 Kick 16 | . . . . 16 Crush . | . . . . . Escape Stasis . | . . . . . Rewire . | . . . . . Trap . | . . . . . Miscellaneous . | . . . . . Route ------- -11/Scrapyard -10/Materials -9/Materials -9/Mines (discovered 2 exits: *Mat x2) -8/Materials History --------- Turn | Location | Event 18 | -11/Scrapyard | Discovered new exit (range 16) 38 | -11/Scrapyard | Entered Materials 175 | -10/Materials | Discovered new exit (range 3) 191 | -10/Materials | Entered another Materials area 191 | -9/Materials | Evolved 2 slots: Propulsion x1, Utility x1 303 | -9/Materials | Build established: Mutant 360 | -9/Materials | Discovered new exit (range 7) 364 | -9/Materials | Entered Mines 371 | -9/Mines | Lost 3 parts (1p1n1w) 379 | -9/Mines | Identified exit to Materials 390 | -9/Mines | Met a Derelict bent on vengeance 630 | -9/Mines | Found a hidden stash of uninstalled traps 687 | -9/Mines | Discovered exit to Materials (range 13) 710 | -9/Mines | Entered Materials 710 | -8/Materials | Evolved 2 slots: Power x1, Utility x1 739 | -8/Materials | Lost 4 parts (1p2n1u) 879 | -8/Materials | Core integrity fell below 50% 889 | -8/Materials | Core integrity fell below 20% 897 | -8/Materials | Destroyed by G-47 Trooper with Particle Gun Last Messages --------------- Kicked L-31 Rogue out of the way. Carbon-fiber Leg severed. Kicked G-47 Trooper. Kicked G-47 Trooper out of the way. Carbon-fiber Leg severed. R-06 Scavenger collects Carbon-fiber Leg. K-01 Serf collects debris. Kicked G-47 Trooper. Kicked G-47 Trooper out of the way. Kicked G-47 Trooper. Carbon-fiber Leg destroyed. Critical hit (Burn: +37). Slammed into G-47 Trooper. G-47 Trooper knocked back. Slammed into G-47 Trooper. Destabilizing: Core damaged (-27). Slammed into G-47 Trooper. G-47 Trooper destroyed. Slammed into G-47 Trooper. R-06 Scavenger collects Aluminum Leg. Map ----- +----------------------------------------------------+ | ?????????????????????????????????????????????????? | | ?????????????????????????????????????????????????? | | ?????????????????????????????????????????????????? | | ?????????????????????????????????????###?????????? | | ????????????????????????????????????? ?????????? | | ?????????????????????????????????????# #?????????? | | ?????????????????????????????????????# #?????????? | | ???????????????????????????########### #?????????? | | ???????????????????????????# # #?????????? | | ???????????????????????????# # ###??###### | | ???????????????????????????# # #### | | ???????????????????????????# / + | | ???????????????????????????# # #### | | ???????????????????????????# # #??# | | ???????????????????????????# # #??# "T" | | ????????????????#??????????# # #??# | | ????????????????# ##############+### #######+# | | ????????????????# | | ????????????????+ | | ????????????????# % | | ???????????????????########r#### ###+## | | ????????????????????????# %%!%# # # | | ????????????????????????#%%%%%%# # #==!!!! | | ????????????????????????#%""""%# # #==!!!! | | ????????????????????????#g""""%# # %####### | | ????????????????????????#@""""%# # #?????? | | ????????????????????????#rlY!%%# #= #?????? | | ????????????????????????######## #= #?????? | | ???????????????????????????????# #= !#?????? | | ??????????????#+################ # #?????? | | ??????? ######?????? | | ??????????????################### #??????????? | | ????????????????????????????????# #??????????? | | ????????????????????????????????# #??????????? | | ????????????????????????????????# #??????????? | | ????????????????????????????????# #??????????? | | ????????????????????????????????# #??????????? | | ????????????????????????????????# #??????????? | | ????????????????????????????????# #??????????? | | ????????????????????????????????# #??????????? | | ????????????????????????????????# #??????????? | | ????????????????????????????????? #??????????? | | ????????????????????????????????? #??????????? | | ???????????????????????????H????? ??????????? | | ????????????????????????????????? ##??????????? | | ?????????????????????????????????#####???????????? | | ?????????????????????????????????????????????????? | | ?????????????????????????????????????????????????? | | ?????????????????????????????????????????????????? | | ?????????????????????????????????????????????????? | +----------------------------------------------------+ Best States ------------- Heat Dissipation 31 Energy Generation 10 Energy Capacity 250 Matter Stores 300 Matter Capacity 300 Sight Range 16 Terrain Scan Density 10 Propulsion Shielding 33 Evasion (%) 55 Item Schematics ----------------- None Robot Schematics ------------------ None Fabricated ------------ Nothing Alien Tech Used ----------------- None Achievements -------------- None Challenges ------------ None Game ------ Seed NovaScatterRouter Manual? 0 Play Time 00:17:27 Cumulative 2.6 hours Start 2024.04.09 @ 13:27:00 End 2024.04.09 @ 18:12:26 Sessions 3 Manual Loads 0 Difficulty Rogue Special Mode None Game No. 7 Rogue 2 Adventurer 5 Explorer 0 Win Type - Total 0 Types 0/0/0/0/0/0/0/0/0 Lore% 1 Gallery% 5 Achievement% 5 Wizard Run 0 Options --------- Layout 1 ASCII 0 Keyboard 0 Movement Numpad Keybinds 0 Fullscreen 1 Font 24/Smallcaps Map View 50x35 Zoom Use 0% Tactical HUD 0 Map Filters NONE Filters NONE Steam 1 RUN: 9c7dc9ac-162c-4a5e-8b66-c088fe26d137